bitfinex-derivatives/quotes_ETHF0:USTF0_20251031
["timestamp","ask_amount","ask_price","bid_price","bid_amount"]
[1761930494150,3.2078,3826.9,3826.3,0.47066]
[1761930494341,1.39081261,3827.5,3827.4,1.07202]
[1761930494541,0.00223389,3827.5,3827.4,3.67832]
[1761930494739,0.00223389,3827.5,3827.4,3.2078]
[1761930495347,0.47054,3827.3,3827.0,3.2078]
[1761930495649,0.47055,3827.2,3827.0,3.2078]
[1761930495860,0.6128,3827.1,3827.0,3.2078]
[1761930496041,0.47055,3827.2,3827.0,3.2078]
[1761930496355,0.6128,3827.1,3827.0,3.2078]
[1761930496544,0.6128,3826.8,3826.7,5.223]
[1761930496742,1.17657,3826.6,3825.5,15.7598]
[1761930497054,1.38857872,3827.0,3826.9,0.6015]
[1761930497252,1.84150325,3827.5,3826.9,0.6015]
[1761930497253,0.00223389,3827.5,3827.0,0.47056]
[1761930497446,0.00223389,3827.5,3826.8,0.47059]
[1761930497447,0.47054,3827.3,3826.8,0.47059]
[1761930497644,0.00223389,3827.5,3826.9,3.2078]
[1761930497841,0.6128,3827.0,3826.6,0.47062]
[1761930498054,0.6128,3827.0,3826.7,0.4706]
[1761930498247,0.6128,3827.0,3826.9,3.2078]
[1761930498448,0.6128,3827.0,3826.5,9.716]
[1761930498449,0.6128,3827.0,3826.7,0.4706]
[1761930498640,0.6128,3827.0,3826.8,0.47059]
[1761930498841,0.00223389,3827.5,3827.2,0.47055]
[1761930499151,0.47054,3827.3,3826.9,3.2078]
[1761930499353,0.47057,3827.1,3826.9,3.2078]
[1761930500044,0.47054,3827.3,3826.9,3.2078]
[1761930500244,0.00223389,3827.5,3826.9,3.2078]
[1761930500541,0.00223389,3827.5,3827.3,3.67833]
[1761930500946,0.47274389,3827.5,3827.3,3.2078]
[1761930501253,0.00223389,3827.5,3827.3,3.67833]
[1761930501651,1.12902,3827.4,3827.3,3.2078]
[1761930502251,1.0595,3826.9,3826.5,9.716]
[1761930502453,0.6585,3826.6,3826.5,9.716]
[1761930503751,0.401,3826.9,3826.5,9.716]
[1761930503943,0.401,3826.9,3826.5,10.18663]
[1761930503944,0.47061,3826.7,3826.5,10.18663]
[1761930504143,0.47061,3826.7,3826.5,9.716]
[1761930505158,0.6585,3826.6,3826.5,9.716]
[1761930505460,0.47069,3826.1,3825.7,9.684]
[1761930505644,0.401,3826.2,3825.7,9.684]
[1761930506046,0.4707,3826.0,3825.7,9.684]
[1761930506356,0.4707,3826.0,3825.7,10.15473]
[1761930506555,3.6088,3826.2,3824.8,0.38863764]
[1761930506747,0.6585,3825.2,3825.1,3.2078]
[1761930506948,3.6088,3826.2,3825.1,3.2078]
[1761930507161,0.47071,3825.9,3825.5,3.2078]
[1761930507556,3.6088,3826.2,3825.5,3.2078]
[1761930507860,0.47076,3825.5,3825.3,8.114]
[1761930508054,0.47074,3825.7,3825.5,0.47075]
[1761930508356,3.2078,3825.8,3825.3,8.114]
[1761930508559,0.6585,3824.9,3824.8,0.00293764]
[1761930508748,0.6585,3824.9,3824.8,3.21073764]
[1761930508949,0.4708,3825.2,3824.9,0.47083]
[1761930509256,0.47082,3825.0,3824.8,3.21073764]
[1761930509560,0.6585,3824.9,3824.8,0.00293764]
[1761930509758,0.47078,3825.3,3824.8,3.21073764]
[1761930510053,0.47081,3825.1,3824.8,3.21073764]
[1761930510445,3.6088,3825.5,3824.8,3.21073764]
[1761930510645,3.6088,3825.5,3824.9,0.47083]
[1761930510950,0.47082,3825.0,3824.8,3.21073764]
[1761930511151,0.6585,3824.9,3824.8,0.00293764]
[1761930511351,0.6585,3824.9,3824.8,0.47377764]
[1761930511656,0.47082,3825.0,3824.8,0.00293764]
[1761930512354,0.47078,3825.3,3825.0,0.47081]
[1761930512553,1.12933,3824.9,3824.8,0.00293764]
[1761930513153,0.47083,3824.9,3824.8,0.00293764]
[1761930513356,0.4708,3825.2,3824.9,0.47082]
[1761930513553,3.2078,3825.4,3824.9,0.47082]
[1761930513554,0.47081,3825.1,3824.9,0.47082]
[1761930513855,3.2078,3825.4,3824.8,0.00293764]
[1761930514051,0.47082,3825.0,3824.8,0.47377764]
[1761930514253,3.2078,3825.4,3824.8,0.00293764]
[1761930514451,0.401,3825.5,3824.9,3.2078]
[1761930514654,0.401,3825.5,3824.9,3.67863]
[1761930514853,0.401,3825.5,3825.0,0.47081]
[1761930514854,0.4708,3825.2,3825.0,0.47081]
[1761930515254,0.47078,3825.4,3824.9,3.2078]
[1761930515654,0.47077,3825.4,3824.9,3.2078]
[1761930515855,0.47078,3825.3,3825.1,0.47079]
[1761930516061,0.401,3825.5,3825.3,0.47077]
[1761930516352,0.47076,3825.5,3824.8,0.00293764]
[1761930516659,0.6585,3824.9,3824.8,0.00293764]
[1761930517362,0.47077,3825.4,3825.2,0.47079]
[1761930517561,0.47078,3825.3,3825.1,3.6786]
[1761930517961,0.47078,3825.3,3825.1,3.2078]
[1761930518151,3.2078,3825.4,3824.8,0.00293764]
[1761930518352,1.12933,3824.9,3824.8,0.00293764]
[1761930519957,0.6585,3824.9,3824.8,0.00293764]
[1761930520563,3.2078,3825.4,3824.8,0.00293764]
[1761930520763,0.47079,3825.2,3824.9,3.2078]
[1761930521065,0.47082,3825.1,3824.9,3.2078]
[1761930521256,0.47081,3825.1,3825.0,0.47082]
[1761930522257,0.47081,3825.0,3824.9,3.2078]
[1761930522459,1.53031,3825.0,3824.9,3.67863]
[1761930522664,1.53031,3825.0,3824.9,3.2078]
[1761930524064,1.12933,3824.9,3824.8,0.00293764]
[1761930525259,3.2078,3825.4,3824.8,0.00293764]
[1761930525458,0.47083,3824.9,3824.8,0.63363764]
[1761930525653,0.47083,3824.9,3824.8,0.00293764]
[1761930526662,0.47081,3825.1,3825.0,0.47081]
[1761930527561,0.47079,3825.3,3825.1,0.47079]
[1761930527761,0.47079,3825.3,3824.9,3.2078]
[1761930527961,0.47079,3825.2,3825.1,0.47079]
[1761930528271,0.47082,3825.0,3824.9,3.67863]
[1761930528469,0.47081,3825.1,3825.0,0.47081]
[1761930528654,0.47081,3825.1,3824.9,3.2078]
[1761930528965,0.47082,3825.0,3824.9,3.67863]
[1761930529262,0.47081,3825.1,3825.0,0.47081]
[1761930529466,0.401,3825.6,3825.2,0.47078]
[1761930529663,0.401,3825.6,3825.0,0.3748]
[1761930529867,0.47076,3825.5,3825.4,0.47076]
[1761930530064,0.47079,3825.3,3825.1,0.47079]
[1761930530260,3.2078,3825.8,3825.3,0.47078]
[1761930530568,0.47077,3825.4,3825.3,1.10148]
[1761930530754,0.47073,3825.7,3825.6,0.47074]
[1761930531165,3.2078,3825.8,3825.5,0.6307]
[1761930531360,0.47074,3825.6,3825.5,0.6307]
[1761930531561,0.47074,3825.6,3825.5,1.10146]
[1761930532262,0.47074,3825.6,3825.5,0.6307]
[1761930532670,0.6716,3825.4,3825.3,0.47078]
[1761930533063,0.6716,3825.4,3824.9,3.2078]
[1761930533265,0.3765,3825.6,3825.1,0.4708]
[1761930533464,0.47079,3825.3,3825.2,0.6307]
[1761930533673,0.47079,3825.3,3825.2,1.10149]
[1761930533873,3.2078,3825.8,3825.0,0.3748]
[1761930534074,0.47076,3825.5,3825.4,0.6307]
[1761930534267,0.46996,3825.5,3825.4,0.6307]
[1761930534668,0.46996,3825.5,3825.4,1.10147]
[1761930534869,0.47072,3825.8,3825.7,0.47073]
[1761930535073,1.17661,3826.5,3825.4,3.2078]
[1761930535074,0.47063,3826.5,3826.3,0.47065]
[1761930535373,9.02628541,3827.1,3826.2,0.3748]
[1761930535572,0.47062,3826.7,3826.5,0.47063]
[1761930535775,0.47062,3826.7,3826.6,0.47062]
[1761930535978,0.6120282,3827.0,3826.6,1.10132]
[1761930536179,0.6118342,3826.9,3826.6,1.10132]
[1761930536374,0.9883342,3826.8,3826.1,3.2078]
[1761930536568,0.47068,3826.2,3825.7,3.2078]
[1761930536768,0.47069,3826.1,3825.7,3.2078]
[1761930536973,1.17656,3826.6,3826.0,0.47069]
[1761930537277,0.47068,3826.2,3826.0,0.47069]
[1761930537474,0.47068,3826.2,3826.1,0.6307]
[1761930537881,0.4707,3826.0,3825.7,3.2078]
[1761930538275,0.4707,3826.0,3825.8,0.47071]
[1761930538680,0.84718,3826.2,3826.0,0.47069]
[1761930538888,0.47068,3826.2,3826.1,0.47068]
[1761930539080,0.47068,3826.2,3826.1,1.10138]
[1761930539283,0.47066,3826.4,3826.2,0.47067]
[1761930539478,3.2078,3826.7,3825.7,3.2078]
[1761930539684,0.47068,3826.1,3826.0,0.6307]
[1761930540084,0.47069,3826.0,3825.9,0.4707]
[1761930540283,0.47072,3825.8,3825.7,3.2078]
[1761930540582,1.17659,3826.5,3826.1,0.6307]
[1761930540787,0.61094991,3826.4,3825.7,3.2078]
[1761930540974,0.3765,3826.2,3825.7,3.2078]
[1761930541174,0.47069,3826.1,3825.8,0.6307]
[1761930541375,0.47071,3825.9,3825.8,0.47071]
[1761930541691,1.17665,3826.3,3825.7,3.8385]
[1761930541990,0.47072,3825.8,3825.7,3.8385]
[1761930542588,0.47072,3825.8,3825.7,4.30923]
[1761930542779,0.47072,3825.8,3825.7,3.8385]
[1761930543680,0.47072,3825.8,3825.7,4.30923]
[1761930543876,0.47072,3825.8,3825.7,3.2078]
[1761930544276,1.55337,3825.6,3824.9,3.2078]
[1761930544487,1.1424,3825.1,3825.0,8.046]
[1761930544985,1.14243,3824.9,3824.5,3.2078]
[1761930545187,0.3765,3825.6,3824.5,3.2078]
[1761930545377,1.1768,3825.9,3825.3,0.6307]
[1761930545580,1.17676,3826.0,3825.3,1.10148]
[1761930545786,0.47077,3825.4,3825.3,0.6307]
[1761930546082,0.47077,3825.4,3825.3,3.2078]
[1761930546686,1.17687,3825.6,3825.0,9.646]
[1761930546988,1.55337,3825.6,3825.0,10.11682]
[1761930547189,0.47081,3825.1,3825.0,10.11682]
[1761930547389,1.55337,3825.6,3824.9,12.8538]
[1761930547390,0.3765,3825.6,3824.9,12.8538]
[1761930547581,0.47081,3825.1,3824.9,13.32462]
[1761930547983,0.3765,3825.6,3824.9,14.03087]
[1761930548184,1.17661,3826.5,3825.3,3.2078]
[1761930548185,0.47065,3826.4,3825.3,3.2078]
[1761930548490,0.4707,3826.0,3825.9,0.6307]
[1761930548692,0.47068,3826.1,3825.9,1.10141]
[1761930548878,0.47068,3826.2,3825.7,3.2078]
[1761930549084,3.2078,3826.5,3825.7,3.2078]
[1761930549279,1.14233,3825.7,3825.6,9.646]
[1761930549589,5.0878656,3825.7,3825.6,9.646]
[1761930551388,4.6171356,3825.7,3825.6,9.646]
[1761930551588,5.0878656,3825.7,3825.6,9.646]
[1761930552695,4.4162656,3825.7,3825.6,10.74744]
[1761930553093,4.4162656,3825.7,3825.6,9.646]
[1761930553796,5.0878656,3825.7,3825.6,9.646]
[1761930555589,0.47081,3825.1,3825.0,10.2381]
[1761930555789,0.47081,3825.1,3825.0,10.70892]
[1761930556388,4.4163456,3825.1,3825.0,10.2381]
[1761930556583,3.9455356,3825.1,3825.0,9.644]
[1761930556788,5.0187456,3825.1,3825.0,9.644]
[1761930557593,0.3409,3825.0,3824.8,0.00293764]
[1761930557898,3.9455356,3825.1,3825.0,1.06492]
[1761930558394,4.4163356,3825.1,3825.0,0.5941]
[1761930559096,4.4163356,3825.1,3825.0,1.06492]
[1761930559495,3.9455356,3825.1,3825.0,1.06492]
[1761930560095,3.9455356,3825.1,3825.0,1.38612]
[1761930560699,0.47072,3825.8,3825.7,1.03873]
[1761930560888,3.2078,3826.4,3825.7,9.642]
[1761930561192,0.61432377,3826.3,3826.0,0.568]
[1761930561392,0.47068,3826.1,3826.0,1.03869]
[1761930561594,0.47068,3826.1,3826.0,0.568]
[1761930561892,0.47072,3825.8,3825.7,9.642]
[1761930562089,1.04442,3825.8,3825.7,9.642]
[1761930562796,0.4708,3825.1,3825.0,3.2078]
[1761930562983,0.47079,3825.2,3825.1,0.4708]
[1761930563186,1.17681,3825.8,3825.0,3.2078]
[1761930563187,1.17674,3826.0,3825.4,0.47076]
[1761930563387,0.61389237,3825.9,3825.5,9.641]
[1761930563588,0.47071,3825.9,3825.8,1.03872]
[1761930563893,1.40935,3825.6,3825.5,9.641]
[1761930564194,0.47068,3826.2,3825.6,0.3707]
[1761930564392,3.2078,3826.6,3826.1,0.568]
[1761930564594,0.47065,3826.4,3826.3,0.568]
[1761930564792,3.67842,3826.6,3826.4,0.47065]
[1761930564996,0.47064,3826.5,3826.3,0.47066]
[1761930565189,0.47064,3826.5,3826.4,1.03865]
[1761930565499,0.4706,3826.8,3826.2,3.5785]
[1761930565698,0.4706,3826.8,3826.7,0.568]
[1761930565895,0.61389851,3827.0,3826.7,9.64]
[1761930566097,0.9386,3826.8,3826.7,9.64]
[1761930566399,1.55249851,3826.8,3826.7,9.64]
[1761930566700,0.61389851,3826.8,3826.7,9.64]
[1761930566901,0.47059,3826.9,3826.7,9.64]
[1761930567100,0.61395748,3826.8,3826.7,9.64]
[1761930567299,0.47059,3826.9,3826.7,9.64]
[1761930567491,0.47059,3826.9,3826.7,10.1106]
[1761930567694,0.47059,3826.9,3826.8,0.568]
[1761930567989,0.61382851,3826.9,3826.8,0.568]
[1761930568194,0.47058,3827.0,3826.8,0.568]
[1761930568592,0.3409,3827.4,3826.7,10.1106]
[1761930568796,0.47059,3826.9,3826.7,10.1106]
[1761930569001,0.47057,3827.1,3826.8,1.03859]
[1761930569300,0.47058,3827.0,3826.9,0.568]
[1761930569498,0.4706,3826.8,3826.7,9.64]
[1761930569689,0.47056,3827.1,3826.9,0.47058]
[1761930569888,0.3409,3827.4,3826.7,10.1106]
[1761930570098,0.4706,3826.8,3826.7,9.64]
[1761930570398,0.3409,3827.4,3826.7,9.64]
[1761930570602,0.6132896,3827.3,3826.9,0.47058]
[1761930570802,0.47057,3827.0,3826.9,1.03858]
[1761930570993,0.47055,3827.2,3827.1,0.568]
[1761930571193,0.3649,3827.4,3826.9,0.47059]
[1761930571396,0.3649,3827.4,3827.1,0.47056]
[1761930571699,0.3649,3827.4,3826.9,0.47059]
[1761930571898,0.47056,3827.1,3827.0,0.568]
[1761930572206,0.47056,3827.1,3827.0,1.03857]
[1761930572401,0.47056,3827.2,3827.1,0.47056]
[1761930572602,0.3649,3827.4,3826.7,9.64]
[1761930572804,0.47058,3827.0,3826.7,9.64]
[1761930572999,0.3649,3827.4,3827.0,0.47057]
[1761930573202,0.47056,3827.1,3827.0,0.47057]
[1761930573501,0.47059,3826.9,3826.8,0.4706]
[1761930573798,0.47059,3826.9,3826.8,0.568]
[1761930573992,0.4706,3826.8,3826.7,10.11061]
[1761930574196,0.4706,3826.8,3826.7,9.64]
[1761930574402,1.0443,3826.8,3826.7,9.64]
[1761930575097,1.0443,3826.8,3825.9,3.6785]
[1761930575098,0.47069,3826.1,3826.0,1.0387]
[1761930575295,0.47069,3826.1,3826.0,9.634]
[1761930576507,0.3649,3826.5,3826.0,9.634]
[1761930576700,0.47067,3826.2,3826.1,0.568]
[1761930578097,0.3649,3826.5,3826.1,1.03868]
[1761930578294,0.3649,3827.0,3826.6,0.568]
[1761930578606,0.47061,3826.8,3826.7,0.568]
[1761930579106,0.47056,3827.1,3827.0,1.03857]
[1761930579306,4.38635389,3827.5,3827.4,0.568]
[1761930579307,0.00223389,3827.5,3827.4,0.568]
[1761930579518,0.00223389,3827.5,3827.4,10.67052]
[1761930593721,0.47274389,3827.5,3827.4,10.67052]
[1761930594020,0.00223389,3827.5,3827.4,10.67052]
[1761930597125,0.47273389,3827.5,3827.4,10.67052]
[1761930597613,0.00223389,3827.5,3827.4,10.67052]
[1761930598621,0.3516,3828.5,3827.7,0.47047]
[1761930598810,0.3516,3828.5,3827.5,0.1995]
[1761930598811,1.78631815,3828.4,3827.9,0.47044]
[1761930599015,0.47045,3828.0,3827.9,0.62]
[1761930599216,1.08905,3827.9,3827.8,9.618]
[1761930599524,1.09187663,3827.9,3827.8,9.62084594]
[1761930600111,4.29967663,3827.9,3827.8,9.62084594]
[1761930600311,0.3516,3827.5,3827.0,3.2078]
[1761930600523,3.21062663,3827.9,3827.3,0.62]
[1761930600716,0.00282663,3827.9,3827.8,1.09047]
[1761930601018,1.09188663,3827.9,3827.8,9.616]
[1761930601325,1.09188663,3827.9,3827.8,9.6186566]
[1761930601525,1.70214745,3827.9,3827.8,9.6186566]
[1761930602123,1.09188663,3827.9,3827.8,9.6186566]
[1761930603023,1.70213025,3827.9,3827.8,9.6186566]
[1761930603223,1.09188663,3827.9,3827.8,9.6186566]
[1761930603422,1.70202946,3827.9,3827.8,9.6186566]
[1761930603627,1.09188663,3827.9,3827.8,9.6186566]
[1761930604127,1.70214121,3827.9,3827.8,0.0026566]
[1761930604716,1.09188663,3827.9,3827.8,0.0026566]
[1761930605019,0.00282663,3827.9,3827.8,10.7061266]
[1761930605418,0.47032,3829.0,3828.9,0.62]
[1761930605620,0.47035,3828.8,3828.7,9.613]
[1761930606028,1.08895,3828.8,3828.7,9.613]
[1761930606217,3.5594,3829.0,3828.7,10.233]
[1761930606528,0.47344381,3829.0,3828.9,0.62]
[1761930606927,0.47035,3828.8,3828.7,9.613]
[1761930608025,0.00311381,3829.0,3828.9,1.09033]
[1761930608330,0.00311381,3829.0,3828.9,0.62]
[1761930608524,0.00311381,3829.0,3828.9,1.09033]
[1761930608922,0.00311381,3829.0,3828.9,4.29813]
[1761930609130,0.025,3829.7,3829.6,0.62]
[1761930609320,0.025,3829.7,3829.6,10.23]
[1761930609520,0.63643684,3829.7,3829.6,10.23]
[1761930609718,0.025,3829.7,3829.6,10.23]
[1761930610132,0.02777125,3829.7,3829.6,10.23]
[1761930612125,0.02777125,3829.7,3829.6,9.61]
[1761930612525,0.3516,3829.5,3828.9,3.2078]
[1761930612730,0.47026,3829.6,3829.0,9.9686]
[1761930612940,0.47026,3829.6,3829.5,0.62]
[1761930613128,0.47026,3829.6,3829.5,10.227]
[1761930613832,0.47026,3829.6,3829.5,9.607]
[1761930614135,1.01946,3829.6,3829.5,9.607]
[1761930614625,1.01946,3829.6,3829.0,0.3616]
[1761930614832,0.47037,3828.7,3828.6,4.9221]
[1761930615542,0.47032,3829.0,3828.9,0.5601]
[1761930616332,0.47036,3828.7,3828.6,4.362]
[1761930616522,0.47034,3828.9,3828.8,0.5601]
[1761930616724,0.47033,3829.0,3828.9,0.5601]
[1761930617343,0.47036,3828.7,3828.6,4.362]
[1761930617546,0.47036,3828.7,3828.6,4.9221]
[1761930618247,0.3302,3829.2,3828.7,0.5314]
[1761930618544,0.47025,3829.6,3829.5,0.5314]
[1761930618939,0.47032,3829.0,3828.9,3.7392]
[1761930619140,0.47032,3829.0,3828.9,4.20953]
[1761930619339,1.20338125,3829.7,3828.9,4.20953]
[1761930619340,1.20338125,3829.7,3829.0,1.00172]
[1761930619643,0.47031,3829.1,3829.0,0.5314]
[1761930621138,0.3302,3829.5,3829.1,0.5314]
[1761930621440,0.4703,3829.2,3829.1,0.5314]
[1761930622047,0.47032,3829.0,3828.9,3.2078]
[1761930622436,0.47035,3828.8,3828.7,0.5314]
[1761930622741,0.47036,3828.7,3828.6,4.362]
[1761930622942,0.47037,3828.6,3828.5,3.2078]
[1761930623944,0.98216,3827.9,3827.8,0.0026566]
[1761930626442,1.31242,3827.4,3827.3,8.5]
[1761930626639,0.47052,3827.4,3827.3,8.5]
[1761930626842,0.47064,3826.4,3826.3,12.8058]
[1761930627038,0.47064,3826.4,3826.3,10.1294]
[1761930627250,0.47064,3826.4,3826.3,9.598]
[1761930627451,0.98514324,3826.4,3826.3,9.60077253]
[1761930627840,0.47344324,3826.4,3826.3,9.60077253]
[1761930628850,0.47344324,3826.4,3826.3,0.00277253]
[1761930629151,0.98514324,3826.4,3826.3,0.00277253]
[1761930629948,1.17702,3825.1,3824.1,3.2078]
[1761930630157,0.47088,3824.6,3824.1,3.2078]
[1761930630451,0.3302,3825.0,3824.2,9.598]
[1761930630452,0.4709,3824.4,3824.2,9.598]
[1761930630953,0.4709,3824.4,3824.2,0.00317095]
[1761930631151,0.47089,3824.5,3824.3,9.598]
[1761930632246,0.4709,3824.3,3824.2,0.00317095]
[1761930632645,0.9826,3824.3,3824.2,0.00317095]
[1761930632854,0.9826,3824.3,3824.2,5.13717095]
[1761930633053,0.9826,3824.3,3824.2,9.60117095]
[1761930633451,0.47089,3824.4,3824.2,0.00317095]
[1761930633848,3.7195,3824.3,3824.2,0.00317095]
[1761930634055,0.47104,3823.2,3822.9,3.2078]
[1761930634354,0.3302,3823.8,3822.9,7.8298]
[1761930634547,3.2078,3823.5,3822.9,4.622]
[1761930634749,0.47108,3822.9,3822.3,0.47114]
[1761930634950,0.80125,3823.2,3822.4,8.252]
[1761930635151,0.00235581,3823.2,3822.7,0.47109]
[1761930635459,0.47339581,3823.2,3822.7,0.4711]
[1761930635651,0.00235581,3823.2,3822.6,9.9037]
[1761930635853,3.2078,3824.5,3823.9,0.5314]
[1761930636045,3.2078,3824.5,3823.6,3.2078]
[1761930636250,0.3302,3823.8,3823.2,3.2078]
[1761930636449,0.80117,3823.8,3823.3,4.532]
[1761930636754,0.80117,3823.8,3823.3,5.00302]
[1761930636956,0.00300639,3823.8,3823.3,5.00302]
[1761930637159,0.471,3823.6,3823.5,0.5314]
[1761930637652,0.47397639,3823.8,3823.5,0.5314]
[1761930637855,0.00300639,3823.8,3823.7,0.5314]
[1761930638854,3.2078,3825.4,3823.9,1.17739]
[1761930639053,3.2078,3825.4,3824.5,3.2078]
[1761930639253,0.47078,3825.4,3824.9,0.47082]
[1761930639457,0.3302,3825.6,3824.5,3.2078]
[1761930639458,0.47081,3825.1,3824.5,3.67868]
[1761930639758,0.00284522,3825.1,3825.0,9.6]
[1761930640055,0.00284522,3825.1,3824.5,3.2078]
[1761930640258,0.47365522,3825.1,3824.6,4.398]
[1761930640460,0.00284522,3825.1,3824.5,3.2078]
[1761930640860,0.47084,3824.8,3824.6,5.193]
[1761930641257,3.68145522,3825.1,3824.6,5.66386]
[1761930641457,3.68145522,3825.1,3824.9,0.5314]
[1761930641458,0.47082,3825.0,3824.9,0.5314]
[1761930641657,0.47084,3824.8,3824.6,5.193]
[1761930641854,0.47086,3824.6,3824.5,3.7392]
[1761930642060,0.47086,3824.6,3824.5,6.083]
[1761930642963,0.4709,3824.4,3824.1,3.2078]
[1761930643255,0.4709,3824.4,3824.3,9.599]
[1761930643864,0.4709,3824.4,3824.3,10.1304]
[1761930644263,0.47087,3824.6,3824.3,10.1304]
[1761930644564,0.47087,3824.6,3824.5,0.5014]
[1761930644956,0.47089,3824.4,3824.3,9.599]
[1761930645559,0.47089,3824.4,3824.1,3.67872]
[1761930645760,0.47089,3824.4,3824.3,0.5014]
[1761930645961,3.21064522,3825.1,3824.7,0.5014]
[1761930646163,0.47082,3825.0,3824.8,0.5014]
[1761930646563,3.21064522,3825.1,3824.8,0.5014]
[1761930646770,0.47082,3825.0,3824.8,0.5014]
[1761930647767,0.47083,3824.9,3824.8,0.5014]
[1761930648068,0.47086,3824.6,3824.5,2.067]
[1761930649569,0.00284522,3825.1,3825.0,1.26682]
[1761930649758,0.00284522,3825.1,3825.0,0.5014]
[1761930649963,0.47364522,3825.1,3825.0,0.5014]
[1761930650172,0.47364522,3825.1,3825.0,10.0974]
[1761930650372,0.00284522,3825.1,3825.0,10.86282]
[1761930650669,0.47364522,3825.1,3825.0,10.392]
[1761930650966,0.47086,3824.6,3824.5,4.7734]
[1761930651163,0.47086,3824.6,3824.5,14.8708]
[1761930652572,0.47085,3824.7,3824.6,0.97226]
[1761930652765,0.47085,3824.8,3824.7,0.5014]
[1761930653671,0.47086,3824.7,3824.6,0.5014]
[1761930654871,4.38766522,3825.1,3824.5,14.3694]
[1761930654872,0.00284522,3825.1,3824.5,14.3694]
[1761930655167,1.38857872,3826.5,3825.6,0.796]
[1761930655369,0.61397478,3826.4,3825.7,12.8018]
[1761930655562,0.47071,3825.8,3825.7,13.3032]
[1761930655765,1.08468478,3825.8,3825.7,13.3032]
[1761930656172,1.08670269,3825.8,3825.7,10.09729753]
[1761930656474,0.61599269,3825.8,3825.7,13.77582753]
[1761930656666,0.61599269,3825.8,3825.7,3.71109753]
[1761930656871,1.08670269,3825.8,3825.7,10.09629753]
[1761930658168,1.08670269,3825.8,3825.7,10.09529753]
[1761930659270,1.58020269,3825.8,3825.7,0.00189753]
[1761930660474,2.96878141,3825.8,3825.7,0.00189753]
[1761930660670,0.47086,3824.7,3824.6,0.5014]
[1761930660875,0.96436,3824.6,3824.1,3.2078]
[1761930661073,0.61582634,3824.6,3824.5,5.2748]
[1761930661280,0.47075,3825.5,3825.4,0.5014]
[1761930661571,0.47075,3825.5,3825.4,10.0914]
[1761930661771,0.47075,3825.5,3825.4,10.09395826]
[1761930662082,0.9643,3825.1,3825.0,3.2078]
[1761930662281,3.2078,3825.2,3824.6,0.5014]
[1761930662578,0.47085,3824.8,3824.7,7.4394]
[1761930663069,0.47085,3824.8,3824.7,7.4426694]
[1761930663378,0.47085,3824.8,3824.7,10.0936694]
[1761930667081,1.38119889,3825.1,3824.7,10.0926694]
[1761930667282,1.38119889,3825.3,3825.2,0.5014]
[1761930667581,0.47076,3825.4,3825.3,0.5014]
[1761930668082,0.47074,3825.6,3825.5,0.5014]
[1761930668377,0.75741,3825.0,3824.9,3.2078]
[1761930668575,0.47084,3824.8,3824.7,0.0032694]
[1761930668771,0.47084,3824.8,3824.7,9.5902694]
[1761930669083,0.47084,3824.8,3824.7,0.5046694]
[1761930669479,0.47084,3824.8,3824.7,9.1726694]
[1761930669882,0.47084,3824.8,3824.7,10.0906694]
[1761930670382,0.4708,3825.0,3824.7,10.0906694]
[1761930670583,0.47082,3824.8,3824.7,10.0906694]
[1761930670781,0.47082,3824.8,3824.7,0.5046694]
[1761930671080,0.47082,3824.8,3824.7,10.0906694]
[1761930671485,0.47082,3824.8,3824.7,0.5046694]
[1761930672081,0.47082,3824.8,3824.7,8.8916694]
[1761930672283,0.96432,3824.8,3824.7,0.0032694]
[1761930672472,0.96432,3824.8,3824.7,4.9642694]
[1761930673074,0.96432,3824.8,3824.7,0.0032694]
[1761930673278,1.57856493,3824.8,3824.7,0.0032694]
[1761930674682,0.94415,3824.6,3824.5,8.1336]
[1761930674883,1.55839493,3824.6,3824.5,1.5656]
[1761930675279,0.94419,3824.3,3824.2,1.8415]
[1761930675485,1.22332,3824.0,3823.9,9.583]
[1761930675782,0.47094,3823.9,3823.8,12.7908]
[1761930675984,1.08518493,3823.9,3823.8,12.79414194]
[1761930676184,1.55848493,3823.9,3823.8,12.79414194]
[1761930676583,1.55848493,3823.9,3823.8,3.21114194]
[1761930677287,1.55848493,3823.9,3823.8,0.00334194]
[1761930680485,1.23688,3823.5,3823.4,1.6168]
[1761930680793,5.05892493,3823.5,3823.4,1.6168]
[1761930681474,5.05892493,3823.5,3823.4,1.61892678]
[1761930682286,4.44468,3823.5,3823.4,1.61892678]
[1761930682688,3.67878,3823.5,3823.4,2.10322678]
[1761930682885,0.47093,3823.9,3823.8,0.4843]
[1761930683391,3.2078,3824.8,3824.2,0.4843]
[1761930683580,0.60997353,3824.7,3824.2,0.4843]
[1761930683781,0.47088,3824.3,3824.2,0.4843]
[1761930683978,3.2078,3824.8,3824.2,7.4423]
[1761930684184,3.2078,3824.8,3824.2,10.6501]
[1761930684491,0.47089,3824.3,3824.2,3.2078]
[1761930684693,0.47089,3824.3,3824.2,8.4718]
[1761930684894,0.47089,3824.3,3824.2,3.2078]
[1761930685187,0.94539,3824.3,3824.2,3.2078]
[1761930686287,0.47093,3823.9,3823.8,3.2078]
[1761930686588,0.47097,3823.6,3823.5,0.4843]
[1761930687396,0.47096,3823.7,3823.6,0.4843]
[1761930687790,0.2914,3824.0,3823.6,0.4843]
[1761930688093,0.2914,3824.0,3823.4,1.61892678]
[1761930688094,0.47096,3823.8,3823.7,0.4843]
[1761930689181,0.2914,3824.0,3823.4,1.61892678]
[1761930689391,0.2914,3824.0,3823.5,7.048]
[1761930690092,0.2914,3824.0,3823.5,0.4843]